Cogmind - Beta 13 @@@ ROGUE MODE // 2024.04.18 @ 20:33:49 Player: Nicky Result: Destroyed by H-55 Commando with Gauss Rifle Performance ------------- Evolutions (3) 1500 Regions Visited (4) 800 Robots Destroyed (31) 155 Value Destroyed (889) 889 Prototype IDs (3) 60 Alien Tech Used (0) 0 Bonus (0) 0 TOTAL SCORE: 3404 Bonus ------- None Cogmind --------- Core Integrity 0/700 Matter 152/300 Energy 28/100 System Corruption 0% Temperature Cool (0) Movement Core (100) Ox1 Location -7/Factory Parts ------- > --- POWER (1) -------- (None) > --- PROPULSION (5) --- (None) > --- UTILITY (5) ------ Advanced Visual Processing Unit Signal Interpreter Improved Targeting Computer Target Analyzer > --- WEAPON (2) ------- Gauss Rifle > --- INVENTORY (5) ---- Improved Heat Sink Improved Sensor Array System Shield Peak State ------------ > --- POWER ------------ Improved Deuterium Engine > --- PROPULSION ------- Compact Wheel Compact Wheel Armored Huge Wheel Improved Flight Unit > --- UTILITY ---------- Medium Storage Unit Advanced Visual Processing Unit Signal Interpreter Improved Targeting Computer Target Analyzer > --- WEAPON ----------- Gauss Rifle Gauss Rifle > --- INVENTORY -------- Medium Treads Compact Wheel Improved Heat Sink Weapon Cycler Hardlight Generator System Shield Gauss Rifle Gauss Rifle Heavy Missile Launcher Heavy Flail [Rating: 38] Favorites ----------- Power Light Nuclear Core Engine Light Deuterium Engine Power Core Light Nuclear Core Propulsion Compact Wheel Treads Light Treads Leg Aluminum Leg Wheel Compact Wheel Flight Unit Improved Flight Unit Utility Medium Storage Unit Device Improved Heat Sink Storage Medium Storage Unit Processor Signal Interpreter Weapon Improved Medium Laser Energy Gun Improved Medium Laser Ballistic Gun Gauss Rifle Launcher Heavy Missile Launcher Build | -11 -10 -9 -8 -7 ------- Run | Yrd Mat Mat Mat Fac Slots Evolved 6 | . . 2 2 2 Power . | . . . . . Propulsion 3 | . . 1 1 1 Utility 3 | . . 1 1 1 Weapon . | . . . . . Parts Attached 41 | 6 2 5 8 20 Power 7 | 1 . 1 2 3 Engine 3 | 1 . . . 2 Core 4 | . . 1 2 1 Reactor . | . . . . . Propulsion 12 | 2 . 1 2 7 Treads 3 | 1 . 1 . 1 Leg 2 | . . . 2 . Wheel 6 | 1 . . . 5 Hover . | . . . . . Flight 1 | . . . . 1 Utility 11 | 1 2 1 3 4 Device 5 | . . . 3 2 Storage 2 | 1 1 . . . Processor 4 | . 1 1 . 2 Hackware . | . . . . . Protection . | . . . . . Artifact . | . . . . . Weapon 11 | 2 . 2 1 6 Energy Gun 6 | 2 . 2 1 1 Energy Cannon . | . . . . . Ballistic Gun 4 | . . . . 4 Ballistic Cannon . | . . . . . Launcher 1 | . . . . 1 Special Weapon . | . . . . . Impact Weapon . | . . . . . Slashing Weapon . | . . . . . Piercing Weapon . | . . . . . Special Melee Weapon . | . . . . . Unidentified Prototypes 3 | . . 1 1 1 Parts Lost 14 | . . . 2 12 Power 1 | . . . . 1 Propulsion 7 | . . . 2 5 Utility 2 | . . . . 2 Weapon 4 | . . . . 4 Highest Loss Streak 12 | . . . 2 12 To Critical Strikes . | . . . . . Average Slot Usage (%) 88 | . 88 93 85 86 Engine 2 | . 14 1 . 4 Core 6 | . . 10 9 1 Treads 11 | . 14 21 12 . Leg 2 | . . . 5 1 Wheel 13 | . 14 11 3 24 Device 4 | . . . 8 5 Storage 9 | . 14 11 9 6 Processor 19 | . 2 16 18 24 Energy Gun 16 | . 28 22 18 8 Ballistic Gun 2 | . . . . 6 Naked Turns . | . . . . . Heaviest Build 28 | 11 16 21 22 28 Greatest Support 76 | 20 16 16 25 76 Greatest Overweight (x) 3 | 2 . 1 1 3 Average Overweight (x) . | . . . . . Largest Inventory Capacity 10 | 8 10 10 10 10 Average Capacity 9 | 7 9 10 10 9 Most Carried 10 | 3 5 10 10 10 Average Carried 8 | 1 3 7 9 9 Final Capacity 10 | 8 10 10 10 5 Final Carried 9 | 3 5 8 9 3 Class Distribution -------------------- 94% | Mutant 5% | Scavenger-Mutant Dominant Class ---------------- Mutant | -10/Materials Mutant | -9/Materials Mutant | -8/Materials Mutant | -7/Factory Resources | -11 -10 -9 -8 -7 ----------- Run | Yrd Mat Mat Mat Fac Matter Collected 596 | 216 52 48 84 196 Remotely . | . . . . . Salvage Created 1184 | . 52 185 412 535 Parts 57 | . 1 17 15 24 Haulers Intercepted 3 | . 1 . 2 . Recyclers Shooed 1 | . . . . 1 Parts Field Recycled . | . . . . . Retrieved Matter . | . . . . . Parts Self-Destructed . | . . . . . Prevented . | . . . . . Kills | -11 -10 -9 -8 -7 ------- Run | Yrd Mat Mat Mat Fac Combat Hostiles Destroyed 20 | . . 7 5 8 Guns 16 | . . 5 5 6 AOE 4 | . . 2 . 2 Classes Destroyed 8 | . 1 4 1 2 Worker 2 | . . . 2 . Hauler 3 | . 1 . 2 . Recycler 3 | . . . . 3 Operator 3 | . . 1 1 1 Swarmer 8 | . . 4 . 4 Grunt 8 | . . 2 5 1 Sentry 2 | . . 1 . 1 Specialist 2 | . . . . 2 Best Kill Streak 5 | . 1 5 3 5 Combat Bots Only 5 | . . 5 3 5 Max Kills in Single Turn 2 | . 1 2 1 1 Gunslinging . | . . . . . Exploded 2 | . . 2 . 1 Melee . | . . . . . Uniques/NPCs Destroyed . | . . . . . Combat | -11 -10 -9 -8 -7 -------- Run | Yrd Mat Mat Mat Fac Hostile Shots Fired 271 | . . 22 24 225 Missed 94 | . . 7 6 81 Damage Taken 2724 | . . 211 296 2217 Core 847 | . . 38 89 720 Absorbed by Shields 92 | . . . . 92 Core Remaining (%) 93 | 100 100 90 83 . Volleys Fired 74 | . 4 12 27 31 Largest 2 | . 2 2 2 2 Hottest 112 | . 90 112 112 111 Shots Fired 137 | . 8 24 54 51 Gun 134 | . 8 24 54 48 Cannon . | . . . . . Launcher 3 | . . . . 3 Special . | . . . . . Kinetic 38 | . . . . 38 Thermal 96 | . 8 24 54 10 Explosive 3 | . . . . 3 Electromagnetic . | . . . . . Robot Hit Streak 11 | . 3 7 11 11 Robot Miss Streak 7 | . 2 7 2 2 Penetration Max 1 | . . . . 1 Secondary Targets 1 | . . . . 1 Max Gunslinging Chain 1 | . . . . 1 Shots Hit Robots 88 | . 4 11 37 36 Core Hits 51 | . 2 11 16 22 Critical Kills 1 | . . . . 1 Critical Parts Destroyed 2 | . . . . 2 Critical Strikes 7 | . . . 3 4 Burn 4 | . . . 3 1 Destroy 3 | . . . . 3 Melee Attacks . | . . . . . Impact . | . . . . . Slashing . | . . . . . Piercing . | . . . . . Sneak Attacks . | . . . . . Combat Hostiles . | . . . . . Follow-up Attacks . | . . . . . Damage Inflicted 2343 | . 47 400 630 1266 Guns 1597 | . 47 155 630 765 Cannons . | . . . . . Explosions 746 | . . 245 . 501 Melee . | . . . . . Ramming . | . . . . . Kinetic 658 | . . . . 658 Thermal 982 | . 47 155 630 150 Explosive 703 | . . 245 . 458 Electromagnetic . | . . . . . Impact . | . . . . . Slashing . | . . . . . Piercing . | . . . . . Highest Corruption . | . . . . . Average Corruption . | . . . . . Corruption Purged . | . . . . . Corruption Blocked . | . . . . . Overload Shots . | . . . . . Overflow Damage 23 | . . 23 . . Projectiles . | . . . . . Explosions 23 | . . 23 . . Melee . | . . . . . Knockbacks . | . . . . . Impact . | . . . . . Kinetic . | . . . . . Secondary . | . . . . . Self-Inflicted Damage 79 | . . 50 . 29 Shots 3 | . . 2 . 1 Rammed . | . . . . . Targets Rammed . | . . . . . Kicked . | . . . . . Crushed . | . . . . . Highest Temperature 545 | . 80 306 545 18 Average Temperature 141 | . 31 107 191 8 Received Heat Transfer 383 | . . 39 180 164 Effects 10 | . . 3 7 . Shutdowns 1 | . . . 1 . Energy Bleed 1 | . . . 1 . Interference 6 | . . 3 3 . Short Circuit 1 | . . . 1 . Damage (minor) 1 | . . . 1 . Siege Activations . | . . . . . Robots Corrupted . | . . . . . Combat Hostiles . | . . . . . Parts Fried . | . . . . . Impact Corruptions . | . . . . . Robots Melted . | . . . . . Combat Hostiles . | . . . . . Parts Melted 11 | . . 2 9 . Heat Transferred 2432 | . 124 371 1591 346 Parts Sabotaged . | . . . . . Parts Stolen . | . . . . . Parts Stripped . | . . . . . Power Chain Reactions . | . . . . . Alert | -11 -10 -9 -8 -7 ------- Run | Yrd Mat Mat Mat Fac Peak Influence 338 | . 7 338 282 188 Initial 62 | . . 2 62 37 Average 98 | . 1 118 145 64 Maximum Alert Level 1 | . . 1 1 . Low Security (%) 86 | 100 100 82 69 100 Level 1 13 | . . 17 30 . Level 2 . | . . . . . Level 3 . | . . . . . Level 4 . | . . . . . Level 5 . | . . . . . High Security . | . . . . . Max Security . | . . . . . Squads Dispatched 5 | . . . 3 2 Investigation . | . . . . . Extermination . | . . . . . Reinforcement 2 | . . . . 2 Assault . | . . . . . Garrison 3 | . . . 3 . Intercept . | . . . . . Searches Triggered . | . . . . . Construction Impeded . | . . . . . Haulers Reinforced . | . . . . . Active Scanning Responses . | . . . . . Cargo Convoy Interrupts . | . . . . . Stealth | -11 -10 -9 -8 -7 --------- Run | Yrd Mat Mat Mat Fac Distress Signals 1 | . . . 1 . Communications Jammed . | . . . . . Distress Signals . | . . . . . Times Spotted 41 | . 1 12 16 12 Peak Tracking Total 8 | . 1 4 5 8 Tactical Retreats 2 | . . 1 1 . Traps | -11 -10 -9 -8 -7 ------- Run | Yrd Mat Mat Mat Fac Traps Triggered 1 | . . . . 1 Indirectly . | . . . . . Trap Hack Attempts . | . . . . . Triggered . | . . . . . Disarmed . | . . . . . Reprogrammed . | . . . . . Reused . | . . . . . Traps Extracted . | . . . . . Installed . | . . . . . Triggered . | . . . . . Objects Rigged 4 | . . 4 . . Exploded 2 | . . 2 . . Machines | -11 -10 -9 -8 -7 ---------- Run | Yrd Mat Mat Mat Fac Machines Disabled 6 | . . 3 . 3 Max in Single Turn 3 | . . 3 . 3 Machines Repaired . | . . . . . Machines Dismantled . | . . . . . Machines Sabotaged . | . . . . . Overloaded Fab Kills . | . . . . . Hacking | -11 -10 -9 -8 -7 --------- Run | Yrd Mat Mat Mat Fac Machines Accessed 6 | . . 4 1 1 Terminals 6 | . . 4 1 1 Fabricators . | . . . . . Repair Stations . | . . . . . Recycling Units . | . . . . . Scanalyzers . | . . . . . Garrison Access . | . . . . . Total Hacks 16 | . . 11 3 2 Successful 7 | . . 6 . 1 Failed 9 | . . 5 3 1 Catastrophic 3 | . . 2 1 . Database Lockouts . | . . . . . Manual 14 | . . 11 3 . Terminals 16 | . . 11 3 2 Fabricators . | . . . . . Repair Stations . | . . . . . Recycling Units . | . . . . . Scanalyzers . | . . . . . Garrison Access . | . . . . . Terminal Hacks 4 | . . 3 . 1 Open DSF 1 | . . . . 1 Terminal Index 1 | . . 1 . . Registered Components 1 | . . 1 . . Zone Layout 1 | . . 1 . . Fabricator Hacks . | . . . . . Repair Station Hacks . | . . . . . Recycling Unit Hacks . | . . . . . Scanalyzer . | . . . . . Garrison Access Hacks . | . . . . . Unauthorized Hacks 3 | . . 3 . . Terminals 3 | . . 3 . . Botnet 2 | . . 2 . . Detonate 1 | . . 1 . . Fabricators . | . . . . . Repair Stations . | . . . . . Recycling Units . | . . . . . Scanalyzers . | . . . . . Garrison Access . | . . . . . Data Cores Recovered 3 | . . 1 1 1 Used . | . . . . . Hacking Detections 4 | . . 3 1 . Full Trace Events . | . . . . . Feedback Events . | . . . . . Feedback Blocked . | . . . . . Robot Schematics Acquired . | . . . . . Robots Built . | . . . . . Authchips . | . . . . . Time . | . . . . . Total Robot Build Rating . | . . . . . Part Schematics Acquired . | . . . . . Parts Built . | . . . . . Authchips . | . . . . . Time . | . . . . . Total Part Build Rating . | . . . . . Parts Repaired . | . . . . . Time . | . . . . . Parts Recycled . | . . . . . Recycled Matter . | . . . . . Retrieved Matter . | . . . . . Retrieved Components . | . . . . . Parts Scanalyzed . | . . . . . Part Schematics Acquired . | . . . . . Parts Damaged . | . . . . . Bothacking | -11 -10 -9 -8 -7 ------------ Run | Yrd Mat Mat Mat Fac Used RIF Installer . | . . . . . Robots Hacked . | . . . . . Non-combat . | . . . . . Combat . | . . . . . Robot Hacks Applied . | . . . . . Relay Couplers Released . | . . . . . Fabnet Peak Effective % . | . . . . . Robots Rewired . | . . . . . Allies Hacked . | . . . . . Hacks Repelled . | . . . . . Allies | -11 -10 -9 -8 -7 -------- Run | Yrd Mat Mat Mat Fac Total Allies . | . . . . . Largest Group . | . . . . . Highest-Rated Group . | . . . . . Highest-Rated Ally . | . . . . . Total Orders . | . . . . . Ally Attacks . | . . . . . Total Damage . | . . . . . Kills . | . . . . . Allies Corrupted . | . . . . . Allies Melted . | . . . . . Intel | -11 -10 -9 -8 -7 ------- Run | Yrd Mat Mat Mat Fac Robot Analysis Total . | . . . . . Derelict Logs Recovered . | . . . . . Drone Launches . | . . . . . Drone Recoveries . | . . . . . Exploration | -11 -10 -9 -8 -7 ------------- Run | Yrd Mat Mat Mat Fac Turns Passed 1653 | 48 96 440 498 571 Spaces Moved 1120 | 35 79 331 254 421 Core 5 | 3 . . . 2 Treads 48 | 3 . . 45 . Legs 92 | . . . 68 24 Wheels 975 | 29 79 331 141 395 Hover . | . . . . . Flight . | . . . . . Fastest Speed 50 | 50 100 100 100 100 Average Speed 117 | 105 100 113 152 102 Slowest Speed 240 | 160 100 115 240 200 Overloaded Moves . | . . . . . Propulsion Burnouts . | . . . . . Robots Hopped . | . . . . . Cave-ins Triggered . | . . . . . Exploration Rate (%) 20 | 4 24 36 23 14 Regions Visited 4 Branch Regions . Pre-discovered Areas . | . . . . . Known Exits Taken 3 | . 1 1 1 . Unknown Exits Taken 1 | 1 . . . . Scrap Searched . | . . . . . Spaces Dug . | . . . . . Terrain Destroyed 85 | . . 39 . 46 Melee . | . . . . . Projectile 1 | . . . . 1 AOE 84 | . . 39 . 45 Terrain Rammed . | . . . . . Walls Destroyed . | . . . . . Machines Disabled . | . . . . . Actions | -11 -10 -9 -8 -7 --------- Run | Yrd Mat Mat Mat Fac Total 1327 | 43 87 371 310 516 Wait 31 | . . 12 10 9 Move 1116 | 34 78 330 253 421 Hop . | . . . . . Pick Up 31 | 3 2 7 6 13 Fast Attach 19 | 6 2 1 2 8 Attach 9 | . . 1 1 7 Detach 2 | . . . . 2 Swap 13 | . . 3 5 5 Drop 32 | . 1 5 6 20 Fire 74 | . 4 12 27 31 Melee . | . . . . . Ram . | . . . . . Kick . | . . . . . Crush . | . . . . . Escape Stasis . | . . . . . Rewire . | . . . . . Trap . | . . . . . Miscellaneous . | . . . . . Route ------- -11/Scrapyard -10/Materials -9/Materials -8/Materials -7/Factory (discovered 1 exit: [*Fac]) History --------- Turn | Location | Event 25 | -11/Scrapyard | Discovered new exit (range 15) 49 | -11/Scrapyard | Entered Materials 127 | -10/Materials | Discovered new exit (range 16) 144 | -10/Materials | Identified exit to Materials 145 | -10/Materials | Entered another Materials area 145 | -9/Materials | Evolved 2 slots: Propulsion x1, Utility x1 301 | -9/Materials | Build established: Mutant 536 | -9/Materials | Discovered new exit (range 16) 584 | -9/Materials | Identified exit to Materials 585 | -9/Materials | Entered another Materials area 585 | -8/Materials | Evolved 2 slots: Propulsion x1, Utility x1 770 | -8/Materials | Garrison activated, responded to threat 975 | -8/Materials | Discovered new exit (range 15) 1001 | -8/Materials | Identified exit to Factory 1083 | -8/Materials | Entered Factory 1083 | -7/Factory | Evolved 2 slots: Propulsion x1, Utility x1 1587 | -7/Factory | Discovered new exit (range 16) 1634 | -7/Factory | Core integrity fell below 50% 1652 | -7/Factory | Core integrity fell below 20% 1654 | -7/Factory | Destroyed by H-55 Commando with Gauss Rifle Last Messages --------------- 01632_ Acquired 3 matter. 01633_ Med. Storage Unit destroyed. 01634_ Slug penetrates Wall. 01636_ Slug penetrates Y-54 Guardian. 01637_ Slug penetrates Wall. 01640_ The unstable cave ceiling collapses. 01642_ Slug penetrates X-67 Chaingunner. 01642_ Penetrated by Slug. 01644_ Med. Treads destroyed. 01645_ Slug penetrates Wall. 01648_ Slug penetrates X-67 Chaingunner. 01648_ X-67 Chaingunner suffers critical hit (Destroy). 01648_ Destroyed Hvy. Machine Gun. 01650_ Gauss Rifle destroyed. 01651_ Acquired Gauss Rifle. 01651_ Penetrated by Slug. 01652_ Slug penetrates X-67 Chaingunner. 01652_ X-67 Chaingunner destroyed. 01653_ Hardlight Generator destroyed. 01654_ Penetrated by Slug. Map ----- +----------------------------------------------------+ | ???# """""""""???# #????????????# # | | ???# ???# #????????????# "" "" [# | | ???# """"""""????# #????????????# "" "" # | | ?????? ????# #????????????# """ """ # | | ?????########?????# #????????????# """ """ # | | ??????????????????# #????????????# """ """ # | | ??????????????????# #????????????# # | | ????????????????### ###??????????# [! # | | ???############## #??????????###########=[ | | ???# "T #????????????????????#= | | ???# "" #????????????????????# | | ???# """ #????????????????????# | | ???# "" ####* * #????????????????????### | | ???# " ???###+####?????????????????????? | | ???# ???#=[%[=[#?????????????????????? | | ???# ???#!=!=! #?????????????????????? | | ???#" #### ! #?????????????????????? | | ???#" + ] ! #?????????????????????? | | ???#; ## ]!! #?????????????????????? | | ???#; ## !! #?????????????????????? | | ???#; ## ####?????????????????????? | | ???#; Y #??????????????????????? | | ???#; [ "" #???????????????######## | | ???#; [ #???????????????# [ [ # | | ????#; H% %% #???????????????# # | | ?# # !h @#???????????????# """ + | | ?# /!#???????????????# """ # | | ?# # # %%#???????????????# """ # | | ?????????# # #### ##???????????????# + | | ?????????# #????# #????????????????######+# | | ?????????## ?????# #?????????????????????# # | | ?????????? ?????# #?????????????????????# # | | ?????????# ?????# #?????????????????????# # | | ?????????# < ?????# #?????????????????????# # | | ?????????# ?????# #?????????????????????# | | ?????????# ?????# #?????????????????????# | | ?????????### ??????# #?????????????????????# | | ???????????# ??????? ??????????????######??# | | ???????????# ??????? ??????????????# ## | | ??????????? ??????? ??????????????# # | | ??????????? ??????? ??????????????# + | | ???????????????????? ??????????????# """ # | | ???????????????????? ??????????????# """ ## | | ???????????????????? ??????????????# """??# | | ???????????????????? ??????????????######??# # | | ???????????????????? ??????????????????????# # | | ???????????????????????????????????????????# # | | ???????????????????????????????????????????# # | | ???????????????????????????????????????#####+# | | ???????????????????????????????????????# | +----------------------------------------------------+ Best States ------------- Heat Dissipation 48 Energy Generation 16 Energy Capacity 290 Matter Stores 300 Matter Capacity 300 Sight Range 20 Terrain Scan Density 10 Additional Mass Support 9 Evasion (%) 55 Targeting Accuracy 6 Target Analysis 5 Recoil Reduction 1 Item Schematics ----------------- None Robot Schematics ------------------ None Fabricated ------------ Nothing Alien Tech Used ----------------- None Achievements -------------- None Challenges ------------ None Game ------ Seed ProtonCatalystStorage Manual? 0 Play Time 00:31:19 Cumulative 12.8 hours Start 2024.04.18 @ 19:58:05 End 2024.04.18 @ 20:33:49 Sessions 1 Manual Loads 0 Difficulty Rogue Special Mode None Game No. 14 Rogue 14 Adventurer 0 Explorer 0 Win Type - Total 0 Types 0/0/0/0/0/0/0/0/0 Lore% 9 Gallery% 22 Achievement% 20 Wizard Run 0 Options --------- Layout 0 ASCII 0 Keyboard 0 Movement Arrows Keybinds 0 Fullscreen 2 Font 18/SmallcapsGlow Map View 76x50 Zoom Use 0% Tactical HUD 1 Map Filters NONE Filters NONE Steam 1 RUN: 6d590478-605e-47f2-8f4f-dbcd1690d8a5